bitfinex/quotes_BTCUSD_20250718
["timestamp","ask_amount","ask_price","bid_price","bid_amount"]
[1752848882341,0.03343597,118070.0,118060.0,0.55708769]
[1752848882587,0.04190494,118070.0,118060.0,0.55708769]
[1752848882843,0.35359367,118070.0,118060.0,0.001]
[1752848883099,0.33665595,118070.0,118060.0,0.001]
[1752848883341,0.12236962,118060.0,118040.0,0.50958322]
[1752848883562,0.45421521,118060.0,118050.0,0.47264221]
[1752848883787,0.24653,118060.0,118050.0,0.47157741]
[1752848884027,0.21244,118060.0,118050.0,0.74344902]
[1752848884261,0.21244,118060.0,118050.0,0.73497833]
[1752848884481,0.21244,118060.0,118050.0,0.75191994]
[1752848884716,0.21244,118060.0,118050.0,0.74344917]
[1752848884941,0.21344,118060.0,118050.0,0.55708769]
[1752848885160,0.22190962,118060.0,118050.0,0.55708769]
[1752848885365,0.21643,118060.0,118050.0,0.08551028]
[1752848885589,0.41124488,118060.0,118050.0,0.55708769]
[1752848885808,0.08659,118060.0,118050.0,0.72650742]
[1752848886044,0.051,118060.0,118050.0,0.26340085]
[1752848886265,0.051,118060.0,118050.0,0.75191972]
[1752848886488,0.051,118060.0,118050.0,0.74644917]
[1752848886728,0.001,118060.0,118050.0,0.76661034]
[1752848886969,0.001,118060.0,118050.0,1.7551686]
[1752848887206,0.001,118060.0,118050.0,1.31569119]
[1752848888108,0.001,118060.0,118050.0,0.84411378]
[1752848888391,0.001,118060.0,118050.0,1.31569119]
[1752848888820,0.001,118060.0,118050.0,1.30115034]
[1752848889043,0.001,118060.0,118050.0,1.30119034]
[1752848889527,0.001,118060.0,118050.0,0.82961293]
[1752848889732,0.001,118060.0,118050.0,1.30119034]
[1752848891294,0.001,118060.0,118050.0,1.77276775]
[1752848891511,0.001,118060.0,118050.0,1.7873086]
[1752848891734,0.001,118060.0,118050.0,1.8186086]
[1752848893702,0.001,118060.0,118050.0,0.87545378]
[1752848893917,0.16244,118080.0,118070.0,0.19479881]
[1752848894127,0.16244,118080.0,118070.0,0.7518865]
[1752848894340,0.16244,118080.0,118070.0,0.28030909]
[1752848894562,0.16244,118080.0,118070.0,0.7518865]
[1752848895684,0.16543,118080.0,118070.0,0.28030909]
[1752848896006,0.16543,118080.0,118070.0,0.7518865]
[1752848896125,0.16543,118080.0,118070.0,0.28030909]
[1752848896362,0.16543,118080.0,118070.0,0.7518865]
[1752848896602,0.16244,118080.0,118070.0,0.28030909]
[1752848896828,0.16244,118080.0,118070.0,0.7518865]
[1752848897280,0.16244,118080.0,118070.0,0.28030909]
[1752848897512,0.25293505,118080.0,118070.0,0.08551028]
[1752848897752,0.0829,118070.0,118060.0,1.01485035]
[1752848897986,0.08589,118070.0,118060.0,0.63725298]
[1752848898467,0.08589,118070.0,118060.0,1.10883039]
[1752848898969,0.08589,118070.0,118060.0,0.62878322]
[1752848899331,0.08589,118070.0,118060.0,1.08542089]
[1752848899626,0.08589,118070.0,118060.0,1.09393072]
[1752848899965,0.08589,118070.0,118060.0,1.10240048]
[1752848900412,0.15259675,118070.0,118060.0,0.34204]
[1752848900448,0.34695485,118070.0,118060.0,0.00204]
[1752848900655,0.15215597,118070.0,118060.0,0.20185581]
[1752848900866,0.15215597,118070.0,118060.0,0.68190298]
[1752848901077,0.12135597,118070.0,118060.0,0.68190298]
[1752848901301,0.21244,118080.0,118070.0,0.19479881]
[1752848901517,0.16447,118080.0,118070.0,0.66637622]
[1752848901740,0.16447,118080.0,118070.0,0.7539365]
[1752848901981,0.0322,118100.0,118090.0,0.18629822]
[1752848902192,0.11539,118110.0,118100.0,0.18628237]
[1752848902409,0.05,118110.0,118100.0,0.75183695]
[1752848902651,0.27771,118120.0,118110.0,0.19473292]
[1752848902873,0.26334092,118120.0,118110.0,0.17780021]
[1752848903091,0.30270631,118120.0,118110.0,0.00846661]
[1752848903319,0.31963795,118120.0,118110.0,0.00106247]
[1752848903614,0.50546255,118120.0,118100.0,0.73490302]
[1752848903835,0.05036811,118110.0,118100.0,0.74337006]
[1752848904049,0.03343597,118110.0,118100.0,0.76030413]
[1752848904268,0.08122228,118110.0,118100.0,0.26332561]
[1752848904493,0.08122228,118110.0,118100.0,0.28889714]
[1752848904712,0.08122228,118110.0,118100.0,0.30583143]
[1752848905153,0.35292492,118110.0,118100.0,0.02557153]
[1752848905367,0.34445889,118110.0,118100.0,0.02557153]
[1752848905582,0.1835919,118110.0,118090.0,1.01481099]
[1752848905815,0.16228,118100.0,118090.0,0.6372114]
[1752848906040,0.16228,118100.0,118090.0,1.10878881]
[1752848906262,0.21228,118100.0,118090.0,1.10878881]
[1752848906498,0.19771597,118110.0,118100.0,0.19474933]
[1752848906730,0.16824,118110.0,118100.0,0.28025961]
[1752848906945,0.16824,118110.0,118100.0,1.09183702]
[1752848907176,0.002,118110.0,118100.0,1.10637787]
[1752848907440,0.002,118110.0,118100.0,1.80431528]
[1752848908103,0.006,118110.0,118100.0,1.80431528]
[1752848908349,0.006,118110.0,118100.0,1.78977443]
[1752848908573,0.14902597,118150.0,118140.0,0.66626081]
[1752848908802,0.14917596,118150.0,118140.0,0.18621937]
[1752848909013,0.14917596,118150.0,118140.0,0.00846453]
[1752848909014,0.3367664,118150.0,118140.0,0.00846453]
[1752848909232,0.30333021,118150.0,118130.0,0.9977998]
[1752848909456,0.09186,118140.0,118130.0,0.60326785]
[1752848909680,0.16581424,118140.0,118130.0,0.34]
[1752848909913,0.35203376,118140.0,118130.0,0.34]
[1752848910130,0.34356973,118140.0,118130.0,0.34]
[1752848910382,0.16581482,118140.0,118130.0,0.34782382]
[1752848910629,0.35467862,118140.0,118130.0,0.34782382]
[1752848910851,0.05,118110.0,118100.0,1.03136967]
[1752848911070,0.27466,118120.0,118110.0,0.18626681]
[1752848911340,0.49727691,118120.0,118100.0,0.27990136]
[1752848911560,0.1637304,118100.0,118090.0,0.0501]
[1752848911781,0.49523841,118100.0,118090.0,0.0501]
[1752848912020,0.49820841,118100.0,118090.0,0.0501]
[1752848912242,0.3288604,118100.0,118090.0,0.0501]
[1752848912469,0.32039286,118100.0,118090.0,0.22793039]
[1752848912683,0.28699689,118100.0,118090.0,0.22793032]
[1752848912897,0.32732701,118100.0,118090.0,0.05856811]
[1752848913122,0.33579426,118100.0,118090.0,0.0501]
[1752848913346,0.5051427,118100.0,118090.0,0.05793784]
[1752848913569,0.5051427,118100.0,118090.0,0.06093784]
[1752848913804,0.4797413,118100.0,118090.0,0.0531]
[1752848914041,0.56802903,118100.0,118090.0,0.0531]
[1752848914272,1.03960644,118100.0,118090.0,0.0531]
[1752848914499,0.55678426,118100.0,118090.0,0.0531]
[1752848915192,0.39462426,118100.0,118090.0,0.0531]
[1752848915441,0.47970123,118100.0,118090.0,0.0531]
[1752848915663,0.47970123,118100.0,118090.0,0.0501]
[1752848915880,0.48070123,118100.0,118090.0,0.0501]
[1752848916104,0.56621151,118100.0,118090.0,0.0501]
[1752848916332,0.56821151,118100.0,118090.0,0.0501]
[1752848916837,0.65397113,118100.0,118090.0,0.0501]
[1752848917542,1.03978892,118100.0,118090.0,0.0501]
[1752848918216,0.56821151,118100.0,118090.0,0.0501]
[1752848918920,0.56817151,118100.0,118090.0,0.0501]
[1752848919584,1.37974892,118100.0,118090.0,0.05014]
[1752848919801,1.37974892,118100.0,118020.0,0.27750318]
[1752848919802,0.04,118030.0,118020.0,0.22057839]
[1752848920018,0.24394781,118030.0,118020.0,0.22062492]
[1752848920242,0.23844597,118030.0,118020.0,0.56959826]
[1752848920468,0.20208,118030.0,118020.0,0.69270261]
[1752848920691,0.20208,118030.0,118020.0,0.85476667]
[1752848920692,0.25241973,118030.0,118020.0,0.85476667]
[1752848920912,0.21902368,118030.0,118020.0,0.51476667]
[1752848921132,0.08186774,118030.0,118020.0,0.23741554]
[1752848921348,0.25237958,118030.0,118020.0,1.05699295]
[1752848921562,0.26089157,118030.0,118020.0,0.23694269]
[1752848921773,0.05694361,118030.0,118020.0,0.71799295]
[1752848922005,0.43881264,118030.0,118020.0,0.87158424]
[1752848922212,0.26386236,118030.0,118020.0,0.87158424]
[1752848922427,0.57697892,118030.0,118020.0,0.05218926]
[1752848922663,0.57364917,118030.0,118020.0,0.04418926]
[1752848922889,0.57364917,118030.0,118020.0,0.04718926]
[1752848923562,1.04522658,118030.0,118020.0,0.04718926]
[1752848923783,0.65197572,118030.0,118020.0,0.04318926]
[1752848924005,0.49089572,118030.0,118020.0,0.04418926]
[1752848924223,0.53460917,118030.0,118020.0,0.04318926]
[1752848924692,0.57460917,118030.0,118020.0,0.04318926]
[1752848924910,0.57360917,118030.0,118020.0,0.04318926]
[1752848925119,0.57660917,118030.0,118020.0,0.04318926]
[1752848925365,0.5432132,118030.0,118020.0,0.04318926]
[1752848925593,0.57660917,118030.0,118020.0,0.04318926]
[1752848925811,0.5432132,118030.0,118020.0,0.04318926]
[1752848926048,0.38526917,118030.0,118020.0,0.04318926]
[1752848926270,0.26035045,118030.0,118020.0,0.04318926]
[1752848926487,0.26035045,118030.0,118020.0,0.51476667]
[1752848926488,0.44474307,118030.0,118020.0,0.51476667]
[1752848926738,0.44274307,118030.0,118020.0,0.51476667]
[1752848926945,0.42479903,118030.0,118020.0,0.04318926]
[1752848927171,0.45759903,118030.0,118020.0,0.04318926]
[1752848927588,0.45959903,118030.0,118020.0,0.04318926]
[1752848927808,0.002,118030.0,118020.0,1.21502564]
[1752848928032,0.002,118030.0,118020.0,1.68553655]
[1752848928455,1e-08,118030.0,118020.0,1.68553655]
[1752848928677,0.04,118070.0,118060.0,0.51787514]
[1752848928903,0.10714225,118090.0,118080.0,0.19478239]
[1752848929136,0.00297,118100.0,118090.0,0.19476583]
[1752848929342,0.033,118110.0,118100.0,0.19474933]
[1752848929585,0.03339597,118110.0,118100.0,1.01479356]
[1752848929791,0.07339597,118110.0,118100.0,1.10034384]
[1752848930014,0.202,118110.0,118100.0,1.57508125]
[1752848930222,0.04,118120.0,118110.0,0.18625763]
[1752848930473,0.04,118120.0,118110.0,0.66630129]
[1752848930690,0.20196,118120.0,118110.0,0.67476747]
[1752848930907,0.24382129,118120.0,118110.0,0.52625777]
[1752848931120,0.09845904,118120.0,118110.0,1.12555554]
[1752848931332,0.08152833,118120.0,118110.0,0.93844312]
[1752848931548,0.42127362,118120.0,118110.0,0.34]
[1752848931767,0.42424362,118120.0,118110.0,0.34]
[1752848932638,0.45724362,118120.0,118110.0,0.342]
[1752848932874,0.45724362,118120.0,118110.0,0.343]
[1752848933571,0.45724362,118120.0,118110.0,0.341]
[1752848934242,0.45724362,118120.0,118110.0,0.34]
[1752848934612,0.45824362,118120.0,118110.0,0.34]
[1752848935085,0.45924362,118120.0,118110.0,0.34]
[1752848935753,0.28216308,118110.0,118100.0,4e-05]
[1752848935980,0.36767336,118110.0,118100.0,4e-05]
[1752848936194,0.37064336,118110.0,118100.0,4e-05]
[1752848937331,0.40224336,118110.0,118100.0,4e-05]
[1752848941114,0.56404336,118110.0,118100.0,4e-05]
[1752848941344,1.61821101,118110.0,118100.0,4e-05]
[1752848941588,1.61921101,118110.0,118100.0,4e-05]
[1752848941823,0.81657963,118110.0,118100.0,4e-05]
[1752848942289,1.56817101,118110.0,118100.0,4e-05]
[1752848942743,1.61817101,118110.0,118100.0,4e-05]
[1752848943444,1.62117101,118110.0,118100.0,4e-05]
[1752848943684,1.62317101,118110.0,118100.0,4e-05]
[1752848946439,1.03233963,118110.0,118100.0,4e-05]
[1752848946668,0.29045249,118070.0,118060.0,0.06711128]
[1752848946882,0.82004694,118070.0,118060.0,0.06726139]
[1752848947109,0.77704277,118070.0,118060.0,0.06726139]
[1752848947360,0.58222277,118070.0,118060.0,0.06726139]
[1752848947592,0.74390277,118070.0,118060.0,0.06726139]
[1752848947813,0.77670277,118070.0,118060.0,0.06726139]
[1752848948027,0.74490277,118070.0,118060.0,0.06726139]
[1752848948244,0.54359587,118070.0,118060.0,0.06726139]
[1752848948466,0.5157468,118070.0,118060.0,0.06726139]
[1752848948739,0.43023652,118070.0,118060.0,0.06726139]
[1752848948972,0.59191652,118070.0,118060.0,0.66130277]
[1752848949196,0.59191652,118070.0,118060.0,0.10287139]
[1752848949197,0.62531249,118070.0,118060.0,0.10287139]
[1752848949458,0.42176733,118070.0,118060.0,0.10387139]
[1752848949681,0.43023623,118070.0,118060.0,0.43966139]
[1752848949892,0.0406269,118070.0,118060.0,1.25104846]
[1752848950115,0.2023069,118070.0,118060.0,1.2719882]
[1752848950339,0.0406269,118070.0,118060.0,1.2679882]
[1752848950563,0.23470287,118070.0,118060.0,1.2729882]
[1752848950782,0.24417184,118070.0,118060.0,1.2749882]
[1752848950993,0.23470287,118070.0,118060.0,1.2699882]
[1752848951219,0.24417177,118070.0,118060.0,1.27398834]
[1752848951467,0.21924492,118070.0,118060.0,0.63521722]
[1752848951715,0.25364089,118070.0,118060.0,1.25545824]
[1752848951952,0.25364081,118070.0,118060.0,1.27838848]
[1752848952213,0.42203249,118070.0,118060.0,0.38176011]
[1752848952485,0.42203249,118070.0,118060.0,0.34915011]
[1752848952685,0.42103249,118070.0,118060.0,0.34315011]
[1752848952906,0.42103249,118070.0,118060.0,0.34615011]
[1752848954915,0.0396269,118070.0,118060.0,0.56760566]
[1752848955127,0.25156089,118070.0,118060.0,1.19073704]
[1752848955382,0.43789066,118070.0,118060.0,1.00439149]
[1752848955578,0.42095264,118070.0,118060.0,0.37805011]
[1752848956022,0.42095264,118070.0,118060.0,0.54745549]
[1752848956239,0.21193427,118070.0,118060.0,1.1669068]
[1752848956437,0.21193427,118070.0,118060.0,1.17537678]
[1752848956735,0.05033427,118070.0,118060.0,1.16390695]
[1752848956982,0.2599905,118070.0,118060.0,1.17341678]
[1752848957184,0.21812513,118070.0,118060.0,1.15347704]
[1752848957397,0.39598556,118070.0,118060.0,1.14400713]
[1752848957627,0.43785101,118070.0,118060.0,1.14600713]
[1752848957834,0.42938197,118070.0,118060.0,1.14600699]
[1752848958080,0.09843014,118070.0,118060.0,1.16294688]
[1752848958298,0.2265541,118070.0,118060.0,1.20341664]
[1752848958518,0.0396269,118070.0,118060.0,1.20341664]
[1752848958730,0.25994993,118070.0,118060.0,1.20341664]
[1752848958937,0.22655396,118070.0,118060.0,1.20341664]
[1752848959187,0.22655381,118070.0,118060.0,0.40930011]
[1752848959404,0.40441468,118070.0,118060.0,0.41230011]
[1752848959631,0.42934168,118070.0,118060.0,0.88292912]
[1752848960312,0.42934219,118070.0,118060.0,0.88292912]
[1752848960523,0.42087293,118070.0,118060.0,0.34519011]
[1752848960722,0.42087293,118070.0,118060.0,0.81581912]
[1752848961417,0.56379659,118070.0,118060.0,0.00519011]
[1752848961635,0.59389659,118070.0,118060.0,0.00519011]
[1752848961881,0.59389659,118070.0,118030.0,0.0079193]
[1752848961882,0.25939986,118040.0,118030.0,0.0079193]
[1752848962108,0.2678882,118030.0,118020.0,0.06461]
[1752848962331,0.2678882,118030.0,118020.0,0.40461]
[1752848962544,0.2678882,118030.0,118020.0,0.591019]
[1752848962545,0.09843876,118030.0,118020.0,0.591019]
[1752848962754,0.08149464,118030.0,118020.0,0.60796455]
[1752848962964,0.08996534,118040.0,118030.0,0.55799306]
[1752848963189,0.21800937,118040.0,118030.0,1.06132207]
[1752848963404,0.42946064,118040.0,118030.0,0.87813901]
[1752848963617,0.42098973,118040.0,118030.0,0.87813901]
[1752848963826,0.25954973,118040.0,118030.0,0.87813901]
[1752848964092,0.41251832,118040.0,118030.0,0.40751]
[1752848964315,0.41251832,118040.0,118030.0,0.343]
[1752848964532,0.41251832,118040.0,118030.0,0.345]
[1752848966981,0.41251832,118040.0,118030.0,0.34504]
[1752848967189,0.41251832,118040.0,118030.0,0.81566901]
[1752848967380,0.41247832,118040.0,118030.0,0.81566901]
[1752848967610,0.41247832,118040.0,118030.0,0.34504]
[1752848968728,0.50464736,118040.0,118030.0,0.00504]
[1752848968951,0.5316686,118040.0,118030.0,0.00504]
[1752848969170,0.7349886,118040.0,118030.0,0.00504]
[1752848969393,0.7653886,118040.0,118030.0,0.00504]
[1752848969602,1.23601761,118040.0,118030.0,1e-08]
[1752848969828,1.32177723,118040.0,118030.0,1e-08]
[1752848970477,1.19114822,118040.0,118030.0,1e-08]
[1752848970911,1.71169723,118040.0,118030.0,1e-08]
[1752848971341,1.24106822,118040.0,118030.0,1e-08]
[1752848971567,1.19106822,118040.0,118030.0,1e-08]
[1752848971859,0.25944723,118010.0,118000.0,0.0001]
[1752848972087,0.54916975,118010.0,118000.0,0.0001]
[1752848972314,0.58417975,118010.0,118000.0,0.0001]
[1752848972758,0.54128751,118010.0,118000.0,0.0001]
[1752848972974,0.50928751,118010.0,118000.0,0.0001]
[1752848973200,0.47589154,118010.0,118000.0,0.0001]
[1752848973461,0.50928751,118010.0,118000.0,0.0001]
[1752848973702,0.22605126,118010.0,118000.0,0.0001]
[1752848973919,0.42376723,118010.0,118000.0,0.06821128]
[1752848974145,0.39037126,118010.0,118000.0,0.06821128]
[1752848974366,0.23136745,118010.0,118000.0,1.09950067]
[1752848974598,0.21666274,118010.0,118000.0,1.10797481]
[1752848974814,0.07004738,118010.0,118000.0,1.13877495]
[1752848975032,0.02194677,118010.0,118000.0,1.14724902]
[1752848975255,0.02194677,118010.0,118000.0,1.13877495]
[1752848975500,0.02194677,118010.0,118000.0,1.15572323]
[1752848975728,0.22309631,118010.0,118000.0,1.15572323]
[1752848975951,0.25424964,118010.0,118000.0,1.14724916]
[1752848976171,0.06181638,118010.0,118000.0,1.14724902]
[1752848976396,0.16128,118010.0,118000.0,1.14624902]
[1752848976614,0.26919713,118010.0,118000.0,0.67562015]
[1752848976862,0.26172328,118010.0,118000.0,1.07066367]
[1752848977082,0.42272738,118010.0,118000.0,0.37436]
[1752848977308,0.26044738,118010.0,118000.0,0.37124]
[1752848977529,0.42172738,118010.0,118000.0,0.37436]
[1752848977743,0.42172738,118010.0,118000.0,0.37536]
[1752848978163,0.42172738,118010.0,118000.0,0.34114]
[1752848978164,0.47984649,118010.0,118000.0,0.34114]
[1752848978374,0.42072738,118010.0,118000.0,0.34114]
[1752848978587,0.50924766,118010.0,118000.0,0.00214]
[1752848978807,0.54174766,118010.0,118000.0,0.00214]
[1752848979234,0.50924766,118010.0,118000.0,0.00214]
[1752848979512,0.50924766,118010.0,118000.0,0.00114]
[1752848979721,0.50924766,118010.0,118000.0,0.00214]
[1752848980150,0.54084766,118010.0,118000.0,0.00214]
[1752848980379,1.04407667,118010.0,118000.0,0.00114]
[1752848980604,0.57344766,118010.0,118000.0,0.00114]
[1752848980829,0.57444766,118010.0,118000.0,0.00114]
[1752848981084,0.57344766,118010.0,118000.0,0.00114]
[1752848981299,0.65920728,118010.0,118000.0,0.00114]
[1752848981517,0.66120728,118010.0,118000.0,0.00114]
[1752848981977,0.62860728,118010.0,118000.0,0.00014]
[1752848982197,0.51220766,118010.0,118000.0,0.00014]
[1752848982432,0.50915766,118010.0,118000.0,0.00014]
[1752848982665,0.42364738,118010.0,118000.0,0.71049181]
[1752848982896,0.41517374,118010.0,118000.0,0.10077128]
[1752848983119,0.41517374,118010.0,118000.0,0.10924585]
[1752848983346,0.39025126,118010.0,118000.0,0.29568615]
[1752848983548,0.39025126,118010.0,118000.0,0.27873737]
[1752848983549,0.39872504,118010.0,118000.0,0.27873737]
[1752848983772,0.39872504,118010.0,118000.0,0.2702628]
[1752848983773,0.42264752,118010.0,118000.0,0.2702628]
[1752848983986,0.38925155,118010.0,118000.0,0.2787373]
[1752848984202,0.25944752,118010.0,118000.0,0.10077128]
[1752848984415,0.41213381,118010.0,118000.0,0.10077128]
[1752848984626,0.2272081,118010.0,118000.0,0.29568558]
[1752848984853,0.01794692,118010.0,118000.0,1.11478895]
[1752848985068,0.00947335,118010.0,118000.0,1.14808895]
[1752848985297,0.001,118010.0,118000.0,1.14808895]
[1752848985510,0.001,118010.0,118000.0,1.71876909]
[1752848985713,0.001,118010.0,118000.0,1.24814008]
[1752848985714,0.16212,118010.0,118000.0,1.24814008]
[1752848986161,0.16212,118010.0,118000.0,1.1800288]
[1752848986597,0.16212,118010.0,118000.0,1.1810288]
[1752848986816,0.16212,118010.0,118000.0,0.71039979]
[1752848987095,0.17059328,118010.0,118000.0,1.16648795]
[1752848987303,0.16212,118010.0,118000.0,1.16648795]
[1752848987738,0.16212,118010.0,118000.0,1.1810288]
[1752848987949,0.16112,118010.0,118000.0,1.1810288]
[1752848988168,0.05034116,118020.0,118010.0,0.59749786]
[1752848988384,0.25941718,118030.0,118020.0,0.21640871]
[1752848988602,0.21980439,118020.0,118010.0,1.0825638]
[1752848988801,0.22827688,118020.0,118010.0,1.12103729]
[1752848989017,0.06728714,118020.0,118010.0,1.14605987]
[1752848989236,0.05881408,118020.0,118010.0,1.14605987]
[1752848989453,0.27737692,118020.0,118010.0,1.0879026]
[1752848989660,0.10791397,118020.0,118010.0,1.11332301]
[1752848989875,0.09944091,118020.0,118010.0,1.11332301]
[1752848990093,0.09096806,118020.0,118010.0,0.645284]
[1752848990313,0.03439597,118020.0,118010.0,1.21596414]
[1752848990533,0.20390846,118020.0,118010.0,1.21596414]
[1752848990745,0.2208538,118020.0,118010.0,1.21596414]
[1752848991184,0.18745783,118020.0,118010.0,1.21596414]
[1752848991409,0.21238102,118020.0,118010.0,1.21596414]
[1752848991625,0.19543597,118020.0,118010.0,1.21596414]
[1752848991843,0.002,118020.0,118010.0,1.21596414]
[1752848992100,0.163,118020.0,118010.0,1.21596414]
[1752848992316,0.162,118020.0,118010.0,1.21596414]
[1752848992534,0.0001498,118040.0,118030.0,0.20940568]
[1752848992754,0.0001498,118040.0,118030.0,1.16834497]
[1752848992974,0.1611098,118040.0,118030.0,1.17093497]
[1752848993206,0.0001498,118040.0,118030.0,1.17093497]
[1752848993658,0.0001498,118040.0,118030.0,1.33189497]
[1752848994097,0.24289504,118070.0,118060.0,0.3715]
[1752848994321,0.26782226,118070.0,118060.0,0.5493755]
[1752848994547,0.42027271,118070.0,118060.0,0.5493755]
[1752848994766,0.21748535,118070.0,118060.0,0.56631524]
[1752848994988,0.43721123,118070.0,118060.0,0.37942872]
[1752848995206,0.42027278,118070.0,118060.0,0.55730422]
[1752848995420,0.20901609,118070.0,118060.0,1.04487311]
[1752848995642,0.20901609,118070.0,118060.0,1.14144315]
[1752848995643,0.2005469,118070.0,118060.0,1.14144315]
[1752848995860,0.2005469,118070.0,118060.0,1.17394315]
[1752848996083,0.0396269,118090.0,118080.0,0.53477176]
[1752848996326,0.0396269,118090.0,118080.0,0.51783517]
[1752848996327,0.25083831,118090.0,118080.0,0.51783517]
[1752848996531,0.2509883,118090.0,118080.0,1.01386981]
[1752848996748,0.2509883,118090.0,118080.0,0.34]
[1752848996749,0.26248101,118090.0,118080.0,0.34]
[1752848997032,0.22595652,118070.0,118060.0,0.00992872]
[1752848997264,0.42023249,118070.0,118060.0,0.00992872]
[1752848997493,0.42023249,118070.0,118060.0,0.18580429]
[1752848997494,0.08996146,118070.0,118060.0,0.18580429]
[1752848997716,0.26782204,118070.0,118060.0,0.48702792]
[1752848997946,0.25080161,118070.0,118060.0,0.75888353]
[1752848998161,0.20270509,118070.0,118060.0,0.80304329]
[1752848998436,0.23386287,118070.0,118060.0,0.80308329]
[1752848998648,0.24333191,118070.0,118060.0,0.83878329]
[1752848998868,0.05756513,118070.0,118060.0,0.83878329]
[1752848999095,0.2518011,118070.0,118060.0,0.83878329]
[1752848999304,0.21093594,118070.0,118060.0,0.84178329]
[1752848999528,0.26982153,118070.0,118060.0,0.00704]
[1752848999773,0.26982153,118070.0,118010.0,0.06752265]
[1752848999774,0.18640871,118020.0,118010.0,0.06752265]
[1752849000002,0.45424158,118020.0,118010.0,0.012]
[1752849000715,0.25943158,118020.0,118010.0,0.012]
[1752849000940,0.42023158,118020.0,118010.0,0.012]
[1752849001162,0.25943158,118020.0,118010.0,0.01250028]
[1752849001614,0.42019158,118020.0,118010.0,0.01250028]
[1752849001839,0.51972385,118020.0,118010.0,0.01250028]
[1752849002347,0.42320158,118020.0,118010.0,0.01250028]
[1752849002572,0.45620158,118020.0,118010.0,0.01250028]
[1752849002856,0.45820158,118020.0,118010.0,0.01350028]
[1752849003077,0.54371186,118020.0,118010.0,0.01350028]
[1752849003800,0.34995186,118020.0,118010.0,0.01350028]
[1752849004022,0.35095186,118020.0,118010.0,0.01350028]
[1752849004246,0.42620158,118020.0,118010.0,0.01350028]
[1752849004928,0.45740158,118020.0,118010.0,0.01350028]
[1752849005151,0.62281013,118020.0,118010.0,0.01350028]
[1752849006086,0.62281013,118020.0,118010.0,1e-08]
[1752849006321,0.65471013,118020.0,118010.0,1e-08]
[1752849006980,0.49395013,118020.0,118010.0,1e-08]
[1752849007216,0.54187186,118020.0,118010.0,1e-08]
[1752849007702,0.31032496,118020.0,118010.0,1e-08]
[1752849007924,0.42816158,118020.0,118010.0,0.00100001]
[1752849008144,0.22903561,118020.0,118010.0,0.06811128]
[1752849008367,0.38352468,118020.0,118010.0,1.000369]
[1752849008583,0.21181953,118020.0,118010.0,1.27033042]
[1752849008801,0.16672,118020.0,118010.0,1.27133042]
[1752849009029,0.25668806,118020.0,118010.0,1.27133042]
[1752849009252,0.26516084,118020.0,118010.0,1.27133042]
[1752849009478,0.42615173,118020.0,118010.0,0.34204]
[1752849009927,0.24821557,118020.0,118010.0,1.12915558]
[1752849010160,0.21477939,118020.0,118010.0,1.19214558]
[1752849010385,0.25664792,118020.0,118010.0,1.19214558]
[1752849010628,0.16368,118020.0,118010.0,1.19114558]
[1752849010837,0.21177939,118020.0,118010.0,1.19114558]
[1752849011075,0.2705934,118020.0,118010.0,1.19114579]
[1752849011297,0.24267099,118020.0,118010.0,1.19861914]
[1752849011539,0.21725209,118020.0,118010.0,1.19861914]
[1752849011755,0.21277939,118020.0,118010.0,1.19961914]
[1752849011975,0.16564,118020.0,118010.0,1.28612942]
[1752849012198,0.001,118020.0,118010.0,1.28512942]
[1752849012428,0.04809838,118040.0,118030.0,0.02541661]
[1752849012649,0.17246248,118050.0,118040.0,0.52637713]
[1752849012650,0.25094597,118050.0,118040.0,0.52637713]
[1752849012890,0.41158597,118050.0,118040.0,1.11859485]
[1752849013124,0.2256787,118050.0,118040.0,0.5688384]
[1752849013347,0.4200242,118050.0,118040.0,0.34]
[1752849013597,0.4200242,118050.0,118040.0,0.50943409]
[1752849013824,0.4200242,118050.0,118040.0,0.54331981]
[1752849013825,0.2002669,118050.0,118040.0,0.54331981]
[1752849014053,0.16064,118050.0,118040.0,1.25373781]
[1752849014289,0.02540957,118060.0,118050.0,0.19483181]
[1752849014515,0.37282282,118080.0,118060.0,0.18634569]
[1752849014746,0.2002269,118070.0,118060.0,0.80866348]
[1752849014964,0.05656506,118070.0,118060.0,0.81972346]
[1752849015193,0.26782197,118070.0,118060.0,0.03269]
[1752849015419,0.41995278,118070.0,118060.0,0.0301]
[1752849015640,0.05033578,118060.0,118050.0,1.16792016]
[1752849015862,0.04186559,118060.0,118050.0,1.27994917]
[1752849016090,0.22883545,118060.0,118050.0,1.27994917]
[1752849016315,0.18696907,118060.0,118050.0,1.27994917]
[1752849016536,0.16156,118060.0,118050.0,1.27994917]
[1752849016991,0.001,118060.0,118050.0,1.27994917]
[1752849017545,0.2594904,118070.0,118060.0,0.53481552]
[1752849017638,0.43835083,118070.0,118060.0,0.56531567]
[1752849017857,0.43835069,118070.0,118060.0,0.65082609]
[1752849018080,0.4134242,118070.0,118060.0,0.65929592]
[1752849018300,0.234442,118060.0,118050.0,0.54392027]
[1752849018522,0.26233828,118060.0,118050.0,0.341]
[1752849018755,0.26233828,118060.0,118050.0,0.51889057]
[1752849018973,0.10690235,118060.0,118050.0,0.53583174]
[1752849019225,0.25936856,118060.0,118050.0,0.34]
[1752849019455,0.25089844,118060.0,118050.0,0.50941973]
[1752849019671,0.25390844,118060.0,118050.0,0.341]
[1752849019886,0.25390844,118060.0,118050.0,0.34]
[1752849020334,0.25690844,118060.0,118050.0,0.341]
[1752849021658,0.25790844,118060.0,118050.0,0.341]
[1752849021883,0.29070844,118060.0,118050.0,0.341]
[1752849022535,0.37621872,118060.0,118050.0,0.001]
[1752849023209,0.40721872,118060.0,118050.0,0.001]
[1752849023434,0.37621872,118060.0,118050.0,0.001]
[1752849023655,0.04809874,118030.0,118020.0,1.23418228]
[1752849023900,0.07302287,118030.0,118020.0,1.35268256]
[1752849024117,0.25887904,118030.0,118020.0,1.3526827]
[1752849024330,0.25887904,118030.0,118020.0,1.33573751]
[1752849024550,0.2000669,118030.0,118020.0,1.35268299]
[1752849024770,0.20853867,118030.0,118020.0,1.35268299]
[1752849024987,0.21751046,118030.0,118020.0,1.35268299]
[1752849025263,0.25090643,118030.0,118020.0,1.23139964]
[1752849025493,0.21003855,118030.0,118020.0,0.76246527]
[1752849025748,0.26037842,118030.0,118020.0,1.23339964]
[1752849025987,0.26037842,118030.0,118020.0,1.25865814]
[1752849026213,0.23541458,118030.0,118020.0,1.25865814]
[1752849026446,0.03489585,118030.0,118020.0,1.25865814]
[1752849026682,0.16189988,118030.0,118020.0,1.27319899]
[1752849026917,0.00149988,118030.0,118020.0,1.43359899]
[1752849027165,0.00249988,118030.0,118020.0,1.43559899]
[1752849027395,0.00249988,118030.0,118020.0,1.45220302]